[Event "Allsvenskan Div I 3 2023/2024: SS Manhem II - Majornas SS"]
[Site "Goteborgs schackcentrum, Vegatan 20, Gothenburg, Sweden"]
[Date "2024.02.04"]
[Round "1.1"]
[White "Johansson, Gunnar"]
[Black "Berggren Torell, Harald"]
[Result "1/2-1/2"]
[TimeControl "90 minutes for 40 moves + 30 minutes for the rest of the game + 30 seconds per move from move one."]
[WhiteFideId "1700715"]
[BlackFideId "1714031"]
[WhiteElo "2180"]
[BlackElo "2052"]

1. e4 {[%clk 01:29:05]} {[%emt 00:01:53]} g6 {[%clk 01:30:48]} {[%emt
00:00:07]} 2. d4 {[%clk 01:29:19]} {[%emt 00:00:22]} d6 {[%clk 01:31:16]}
{[%emt 00:00:03]} 3. Nc3 {[%clk 01:23:31]} {[%emt 00:06:16]} Bg7 {[%clk
01:30:56]} {[%emt 00:00:52]} 4. h3 {[%clk 01:19:00]} {[%emt 00:05:00]} a6
{[%clk 01:29:08]} {[%emt 00:02:18]} 5. a4 {[%clk 01:18:46]} {[%emt 00:00:42]}
Nc6 {[%clk 01:16:59]} {[%emt 00:12:40]} 6. Nf3 {[%clk 01:15:59]} {[%emt
00:03:17]} Nf6 {[%clk 01:13:16]} {[%emt 00:04:13]} 7. Bg5 {[%clk 01:12:20]}
{[%emt 00:04:08]} O-O {[%clk 01:01:12]} {[%emt 00:12:36]} 8. Qd2 {[%clk
00:52:13]} {[%emt 00:20:35]} Qd7 {[%clk 00:43:47]} {[%emt 00:17:56]} 9. Rd1
{[%clk 00:43:53]} {[%emt 00:08:49]} e5 {[%clk 00:34:48]} {[%emt 00:09:31]} 10.
dxe5 {[%clk 00:41:24]} {[%emt 00:02:58]} dxe5 {[%clk 00:33:57]} {[%emt
00:01:22]} 11. Qxd7 {[%clk 00:38:43]} {[%emt 00:03:09]} Nxd7 {[%clk 00:34:19]}
{[%emt 00:00:09]} 12. Nd5 {[%clk 00:38:33]} {[%emt 00:00:40]} Nc5 {[%clk
00:31:08]} {[%emt 00:03:41]} 13. Nxc7 {[%clk 00:30:25]} {[%emt 00:08:38]} Rb8
{[%clk 00:30:47]} {[%emt 00:00:51]} 14. Bc4 {[%clk 00:23:50]} {[%emt 00:07:04]}
Nxa4 {[%clk 00:13:41]} {[%emt 00:17:37]} 15. Rb1 {[%clk 00:21:32]} {[%emt
00:02:48]} b5 {[%clk 00:05:03]} {[%emt 00:09:08]} 16. Ba2 {[%clk 00:19:21]}
{[%emt 00:02:40]} Nb4 {[%clk 00:02:48]} {[%emt 00:02:46]} 17. Bb3 {[%clk
00:19:35]} {[%emt 00:00:15]} Bb7 {[%clk 00:02:00]} {[%emt 00:01:19]} 18. Be7
{[%clk 00:18:04]} {[%emt 00:02:00]} Rfc8 {[%clk 00:01:41]} {[%emt 00:00:50]} 19.
Bxb4 {[%clk 00:18:11]} {[%emt 00:00:22]} Rxc7 {[%clk 00:02:07]} {[%emt
00:00:05]} 20. Bd6 {[%clk 00:18:26]} {[%emt 00:00:14]} Rbc8 {[%clk 00:02:21]}
{[%emt 00:00:17]} 21. Bxc7 {[%clk 00:18:52]} {[%emt 00:00:03]} Rxc7 {[%clk
00:02:47]} {[%emt 00:00:05]} 22. O-O {[%clk 00:16:34]} {[%emt 00:02:47]} Bxe4
{[%clk 00:01:42]} {[%emt 00:01:36]} 23. Ng5 {[%clk 00:16:18]} {[%emt 00:00:45]}
Nc5 {[%clk 00:01:51]} {[%emt 00:00:22]} 24. Rbd1 {[%clk 00:14:26]} {[%emt
00:02:21]} Bh6 {[%clk 00:00:45]} {[%emt 00:01:37]} 25. Nxe4 {[%clk 00:14:05]}
{[%emt 00:00:50]} Nxe4 {[%clk 00:01:14]} {[%emt 00:00:02]} 26. Rd8+ {[%emt
00:01:09]} Kg7 {[%clk 00:01:43]} 27. Rfd1 {[%clk 00:13:30]} {[%emt 00:00:26]}
Nc5 {[%clk 00:01:48]} {[%emt 00:00:25]} 28. Bd5 {[%clk 00:11:18]} {[%emt
00:02:42]} Na4 {[%clk 00:02:03]} {[%emt 00:00:16]} 29. Bb3 {[%clk 00:11:32]}
{[%emt 00:00:15]} Nc5 {[%clk 00:02:29]} {[%emt 00:00:04]} 30. Ba2 {[%clk
00:08:48]} {[%emt 00:03:14]} Bg5 {[%clk 00:02:38]} {[%emt 00:00:22]} 31. Ra8
{[%clk 00:08:24]} {[%emt 00:00:53]} Na4 {[%clk 00:01:42]} {[%emt 00:01:25]} 32.
Bb3 {[%clk 00:06:42]} {[%emt 00:02:13]} 1/2-1/2

[ePGN "0.1;DGT LiveChess/2.2.6"]

[Event "Allsvenskan Div I 3 2023/2024: SS Manhem II - Majornas SS"]
[Site "Goteborgs schackcentrum, Vegatan 20, Gothenburg, Sweden"]
[Date "2024.02.04"]
[Round "1.2"]
[White "Svensson, Lars"]
[Black "Enstrom, Henrik"]
[Result "1/2-1/2"]
[TimeControl "90 minutes for 40 moves + 30 minutes for the rest of the game + 30 seconds per move from move one."]
[WhiteFideId "1734466"]
[BlackFideId "1704842"]
[WhiteElo "2063"]
[BlackElo "2103"]

1. e4 {[%clk 01:30:33]} {[%emt 00:00:26]} d6 {[%clk 01:30:25]} {[%emt
00:00:36]} 2. d4 {[%clk 01:30:26]} {[%emt 00:00:36]} Nf6 {[%clk 01:30:46]}
{[%emt 00:00:09]} 3. Nc3 {[%clk 01:30:47]} {[%emt 00:00:09]} g6 {[%clk
01:30:53]} {[%emt 00:00:24]} 4. Be2 {[%clk 01:30:37]} {[%emt 00:00:39]} Bg7
{[%clk 01:30:34]} {[%emt 00:00:49]} 5. h4 {[%clk 01:30:43]} {[%emt 00:00:24]}
h5 {[%clk 01:28:56]} {[%emt 00:02:08]} 6. Bg5 {[%clk 01:30:58]} {[%emt
00:00:15]} c6 {[%clk 01:25:09]} {[%emt 00:04:18]} 7. Nf3 {[%clk 01:30:47]}
{[%emt 00:00:40]} O-O {[%clk 01:23:57]} {[%emt 00:01:42]} 8. Qd2 {[%clk
01:30:34]} {[%emt 00:00:43]} b5 {[%clk 01:23:42]} {[%emt 00:00:46]} 9. a3
{[%clk 01:28:30]} {[%emt 00:02:33]} Bg4 {[%clk 01:18:48]} {[%emt 00:05:24]} 10.
O-O {[%clk 01:28:37]} {[%emt 00:00:24]} Nbd7 {[%clk 01:17:23]} {[%emt
00:01:55]} 11. Rfe1 {[%clk 01:24:29]} {[%emt 00:04:37]} a6 {[%clk 01:12:54]}
{[%emt 00:05:00]} 12. Nh2 {[%clk 01:16:36]} {[%emt 00:08:22]} Bxe2 {[%clk
01:12:29]} {[%emt 00:00:55]} 13. Rxe2 {[%clk 01:14:43]} {[%emt 00:02:23]} e5
{[%clk 01:10:49]} {[%emt 00:02:10]} 14. Nf3 {[%clk 01:04:04]} {[%emt 00:11:08]}
Qc7 {[%clk 01:08:07]} {[%emt 00:03:13]} 15. Rd1 {[%clk 01:01:23]} {[%emt
00:03:11]} Rad8 {[%clk 01:04:53]} {[%emt 00:03:45]} 16. dxe5 {[%clk 00:53:39]}
{[%emt 00:08:14]} Nxe5 {[%clk 01:04:24]} {[%emt 00:00:59]} 17. Nxe5 {[%clk
00:53:50]} {[%emt 00:00:18]} dxe5 {[%clk 01:04:48]} {[%emt 00:00:06]} 18. Qc1
{[%clk 00:53:50]} {[%emt 00:00:29]} Rxd1+ {[%clk 00:58:53]} {[%emt 00:06:26]}
19. Qxd1 {[%clk 00:53:07]} {[%emt 00:01:13]} Rd8 {[%clk 00:58:59]} {[%emt
00:00:24]} 20. Rd2 {[%clk 00:52:32]} {[%emt 00:01:04]} Rxd2 {[%clk 00:58:49]}
{[%emt 00:00:41]} 21. Qxd2 {[%clk 00:52:37]} {[%emt 00:00:24]} Qd7 {[%clk
00:58:38]} {[%emt 00:00:43]} 22. Qxd7 {[%clk 00:42:23]} {[%emt 00:10:44]} Nxd7
{[%clk 00:59:02]} {[%emt 00:00:05]} 23. Be3 {[%clk 00:42:36]} {[%emt 00:00:16]}
Bf8 {[%clk 00:58:45]} {[%emt 00:00:48]} 1/2-1/2

[ePGN "0.1;DGT LiveChess/2.2.6"]

[Event "Allsvenskan Div I 3 2023/2024: SS Manhem II - Majornas SS"]
[Site "Goteborgs schackcentrum, Vegatan 20, Gothenburg, Sweden"]
[Date "2024.02.04"]
[Round "1.3"]
[White "Fors, Klas"]
[Black "Karlsson, Stefan"]
[Result "1-0"]
[TimeControl "90 minutes for 40 moves + 30 minutes for the rest of the game + 30 seconds per move from move one."]
[WhiteFideId "1708872"]
[BlackFideId "1771183"]
[WhiteElo "2059"]
[BlackElo "1964"]

1. Nf3 {[%clk 01:30:53]} {[%emt 00:00:07]} Nf6 {[%clk 01:18:31]} {[%emt
00:12:29]} 2. c4 {[%clk 01:30:52]} {[%emt 00:00:32]} g6 {[%clk 01:18:46]}
{[%emt 00:00:06]} 3. g3 {[%clk 01:29:14]} {[%emt 00:02:17]} Bg7 {[%clk
01:19:08]} {[%emt 00:00:07]} 4. Bg2 {[%clk 01:29:22]} {[%emt 00:00:22]} O-O
{[%clk 01:19:32]} {[%emt 00:00:07]} 5. O-O {[%clk 01:28:18]} {[%emt 00:01:34]}
d6 {[%clk 01:19:40]} {[%emt 00:00:22]} 6. Nc3 {[%clk 01:27:30]} {[%emt
00:01:18]} e5 {[%clk 01:19:44]} {[%emt 00:00:25]} 7. d4 {[%clk 01:24:21]}
{[%emt 00:03:39]} Nbd7 {[%clk 01:16:21]} {[%emt 00:03:53]} 8. e4 {[%clk
01:18:07]} {[%emt 00:06:44]} c6 {[%clk 01:15:56]} {[%emt 00:00:54]} 9. b3
{[%clk 01:14:06]} {[%emt 00:04:32]} h6 {[%clk 00:58:01]} {[%emt 00:18:25]} 10.
Bb2 {[%clk 01:05:31]} {[%emt 00:09:05]} Nh7 {[%clk 00:51:32]} {[%emt 00:06:59]}
11. Qd2 {[%clk 00:57:31]} {[%emt 00:08:29]} Ng5 {[%clk 00:48:06]} {[%emt
00:03:58]} 12. d5 {[%clk 00:49:04]} {[%emt 00:08:55]} c5 {[%clk 00:33:40]}
{[%emt 00:14:57]} 13. Nh4 {[%clk 00:48:21]} {[%emt 00:01:14]} Nf6 {[%clk
00:30:44]} {[%emt 00:03:25]} 14. Rae1 {[%clk 00:46:22]} {[%emt 00:02:29]} Nh5
{[%clk 00:26:43]} {[%emt 00:04:32]} 15. Qd1 {[%clk 00:45:19]} {[%emt 00:01:32]}
Kh7 {[%clk 00:24:47]} {[%emt 00:02:25]} 16. Kh1 {[%clk 00:44:56]} {[%emt
00:00:55]} Bd7 {[%clk 00:22:36]} {[%emt 00:02:41]} 17. Ne2 {[%clk 00:43:00]}
{[%emt 00:02:26]} Bh3 {[%clk 00:21:45]} {[%emt 00:01:21]} 18. Bxh3 {[%clk
00:42:57]} {[%emt 00:00:34]} Nxh3 {[%clk 00:21:58]} {[%emt 00:00:16]} 19. Ng1
{[%clk 00:43:04]} {[%emt 00:00:23]} Qd7 {[%clk 00:20:17]} {[%emt 00:02:09]} 20.
Nf5 {[%clk 00:27:39]} {[%emt 00:15:57]} Nxg1 {[%clk 00:17:47]} {[%emt
00:03:00]} 21. Kxg1 {[%clk 00:26:15]} {[%emt 00:01:54]} gxf5 {[%clk 00:14:09]}
{[%emt 00:04:08]} 22. Qxh5 {[%clk 00:26:24]} {[%emt 00:00:21]} fxe4 {[%clk
00:14:30]} {[%emt 00:00:08]} 23. Rxe4 {[%clk 00:26:14]} {[%emt 00:00:40]} f5
{[%clk 00:14:44]} {[%emt 00:00:16]} 24. Re2 {[%clk 00:21:35]} {[%emt 00:05:09]}
f4 {[%clk 00:10:08]} {[%emt 00:05:07]} 25. f3 {[%clk 00:19:17]} {[%emt
00:02:48]} Rf5 {[%clk 00:09:15]} {[%emt 00:01:23]} 26. Qh3 {[%clk 00:19:02]}
{[%emt 00:00:45]} fxg3 {[%clk 00:09:19]} {[%emt 00:00:26]} 27. hxg3 {[%clk
00:18:31]} {[%emt 00:01:01]} Raf8 {[%clk 00:07:38]} {[%emt 00:02:10]} 28. Qg4
{[%clk 00:14:17]} {[%emt 00:04:45]} Qf7 {[%clk 00:04:01]} {[%emt 00:04:06]} 29.
Kg2 {[%clk 00:12:13]} {[%emt 00:02:34]} h5 {[%clk 00:03:20]} {[%emt 00:01:12]}
30. Qe4 {[%clk 00:12:27]} {[%emt 00:00:15]} Qg6 {[%clk 00:03:32]} {[%emt
00:00:18]} 31. Bc1 {[%clk 00:12:34]} {[%emt 00:00:24]} R8f6 {[%clk 00:02:53]}
{[%emt 00:01:07]} 32. Ref2 {[%clk 00:11:12]} {[%emt 00:01:53]} Kg8 {[%clk
00:02:38]} {[%emt 00:00:45]} 33. Kh3 {[%clk 00:08:24]} {[%emt 00:03:18]} h4
{[%clk 00:01:15]} {[%emt 00:01:53]} 34. gxh4 {[%clk 00:04:43]} {[%emt
00:04:12]} Rxf3+ {[%clk 00:01:02]} {[%emt 00:00:43]} 35. Qxf3 {[%clk 00:05:04]}
{[%emt 00:00:09]} Rxf3+ {[%clk 00:01:27]} {[%emt 00:00:04]} 36. Rxf3 {[%clk
00:05:16]} {[%emt 00:00:18]} Qc2 {[%clk 00:00:58]} {[%emt 00:00:55]} 37. Rg1
{[%clk 00:02:09]} {[%emt 00:03:42]} Kh8 {[%clk 00:00:42]} {[%emt 00:00:44]} 38.
Rf7 {[%clk 00:02:07]} {[%emt 00:00:35]} Qd3+ {[%clk 00:00:50]} {[%emt
00:00:21]} 39. Rg3 {[%clk 00:02:11]} {[%emt 00:00:26]} Qh7 {[%clk 00:01:10]}
{[%emt 00:00:06]} 40. Rgxg7 {[%clk 00:02:08]} {[%emt 00:00:37]} 1-0

[ePGN "0.1;DGT LiveChess/2.2.6"]

[Event "Allsvenskan Div I 3 2023/2024: SS Manhem II - Majornas SS"]
[Site "Goteborgs schackcentrum, Vegatan 20, Gothenburg, Sweden"]
[Date "2024.02.04"]
[Round "1.4"]
[White "Krantz, Martin"]
[Black "Kallen, Jonas"]
[Result "0-1"]
[TimeControl "90 minutes for 40 moves + 30 minutes for the rest of the game + 30 seconds per move from move one."]
[WhiteFideId "1724100"]
[BlackFideId "1712896"]
[WhiteElo "2006"]
[BlackElo "2039"]

1. d4 {[%clk 01:30:54]} {[%emt 00:00:05]} d5 {[%clk 01:30:53]} {[%emt
00:00:07]} 2. Bf4 {[%clk 01:31:07]} {[%emt 00:00:17]} Nf6 {[%clk 01:31:09]}
{[%emt 00:00:14]} 3. e3 {[%clk 01:31:24]} {[%emt 00:00:13]} c5 {[%clk
01:31:05]} {[%emt 00:00:34]} 4. c3 {[%clk 01:31:22]} {[%emt 00:00:32]} Nc6
{[%clk 01:31:11]} {[%emt 00:00:24]} 5. Bd3 {[%clk 01:28:21]} {[%emt 00:03:31]}
Bg4 {[%clk 01:27:06]} {[%emt 00:04:34]} 6. f3 {[%clk 01:23:39]} {[%emt
00:05:12]} Bh5 {[%clk 01:27:07]} {[%emt 00:00:30]} 7. Nh3 {[%clk 01:22:00]}
{[%emt 00:02:09]} Qb6 {[%clk 01:24:31]} {[%emt 00:03:06]} 8. b3 {[%clk
01:16:46]} {[%emt 00:05:44]} cxd4 {[%clk 01:22:46]} {[%emt 00:02:16]} 9. exd4
{[%clk 01:16:58]} {[%emt 00:00:17]} e6 {[%clk 01:18:30]} {[%emt 00:04:46]} 10.
Nd2 {[%clk 01:12:13]} {[%emt 00:05:15]} Be7 {[%clk 01:15:42]} {[%emt 00:03:18]}
11. Qe2 {[%clk 01:10:20]} {[%emt 00:02:22]} O-O {[%clk 01:13:47]} {[%emt
00:02:26]} 12. O-O {[%clk 01:04:48]} {[%emt 00:06:03]} Rfe8 {[%clk 01:10:37]}
{[%emt 00:03:41]} 13. Kh1 {[%clk 00:53:46]} {[%emt 00:11:31]} Rac8 {[%clk
01:08:20]} {[%emt 00:02:46]} 14. Bg3 {[%clk 00:48:30]} {[%emt 00:05:47]} Bg6
{[%clk 01:05:28]} {[%emt 00:03:22]} 15. Nf4 {[%clk 00:42:54]} {[%emt 00:06:06]}
Nh5 {[%clk 00:58:24]} {[%emt 00:07:33]} 16. Nxh5 {[%clk 00:41:11]} {[%emt
00:02:14]} Bxh5 {[%clk 00:57:44]} {[%emt 00:01:11]} 17. b4 {[%clk 00:37:22]}
{[%emt 00:04:19]} Bf6 {[%clk 00:52:06]} {[%emt 00:06:07]} 18. Be5 {[%clk
00:23:40]} {[%emt 00:14:12]} Nxe5 {[%clk 00:51:17]} {[%emt 00:01:19]} 19. dxe5
{[%clk 00:24:03]} {[%emt 00:00:07]} Be7 {[%clk 00:50:48]} {[%emt 00:00:58]} 20.
Rac1 {[%clk 00:22:38]} {[%emt 00:01:55]} Bg6 {[%clk 00:48:16]} {[%emt
00:03:03]} 21. Bb5 {[%clk 00:19:57]} {[%emt 00:03:10]} Red8 {[%clk 00:46:46]}
{[%emt 00:02:00]} 22. Nb3 {[%clk 00:19:47]} {[%emt 00:00:40]} Rc7 {[%clk
00:42:25]} {[%emt 00:04:51]} 23. Nd4 {[%clk 00:17:00]} {[%emt 00:03:17]} Rdc8
{[%clk 00:38:11]} {[%emt 00:04:44]} 24. Qd2 {[%clk 00:16:40]} {[%emt 00:00:49]}
h6 {[%clk 00:37:45]} {[%emt 00:00:57]} 25. a3 {[%clk 00:16:00]} {[%emt
00:01:11]} a5 {[%clk 00:34:52]} {[%emt 00:03:22]} 26. Be2 {[%clk 00:09:10]}
{[%emt 00:07:20]} axb4 {[%clk 00:24:57]} {[%emt 00:10:25]} 27. axb4 {[%clk
00:09:38]} {[%emt 00:00:02]} Ra8 {[%clk 00:24:32]} {[%emt 00:00:53]} 28. Nb5
{[%clk 00:08:32]} {[%emt 00:01:37]} Rcc8 {[%clk 00:23:18]} {[%emt 00:01:44]} 29.
Ra1 {[%clk 00:08:21]} {[%emt 00:00:41]} Qd8 {[%clk 00:17:57]} {[%emt 00:05:51]}
30. Qb2 {[%clk 00:07:07]} {[%emt 00:01:45]} Rxa1 {[%clk 00:16:35]} {[%emt
00:01:52]} 31. Rxa1 {[%clk 00:06:47]} {[%emt 00:00:50]} Ra8 {[%clk 00:16:07]}
{[%emt 00:00:58]} 32. Ra3 {[%clk 00:05:35]} {[%emt 00:01:42]} Kh7 {[%clk
00:13:42]} {[%emt 00:02:55]} 33. Qa1 {[%clk 00:04:57]} {[%emt 00:01:08]} Rxa3
{[%clk 00:13:55]} {[%emt 00:00:16]} 34. Qxa3 {[%clk 00:05:25]} {[%emt
00:00:02]} Qb8 {[%clk 00:13:52]} {[%emt 00:00:33]} 35. f4 {[%clk 00:05:18]}
{[%emt 00:00:38]} f6 {[%clk 00:13:30]} {[%emt 00:00:52]} 36. exf6 {[%clk
00:04:46]} {[%emt 00:01:02]} Bxf6 {[%clk 00:12:28]} {[%emt 00:01:33]} 37. Qc1
{[%clk 00:04:49]} {[%emt 00:00:27]} e5 {[%clk 00:09:55]} {[%emt 00:03:03]} 38.
fxe5 {[%clk 00:05:01]} {[%emt 00:00:17]} Bxe5 {[%clk 00:09:48]} {[%emt
00:00:37]} 39. h3 {[%clk 00:03:21]} {[%emt 00:02:10]} Qf8 {[%clk 00:07:34]}
{[%emt 00:02:44]} 40. Qe3 {[%clk 00:02:36]} {[%emt 00:01:15]} Qf5 {[%clk
00:06:19]} {[%emt 00:01:44]} 41. Nd4 {[%clk 00:24:12]} {[%emt 00:08:54]} Qb1+
{[%clk 00:34:34]} {[%emt 00:02:15]} 42. Qg1 {[%clk 00:24:36]} {[%emt 00:00:07]}
Qb2 {[%clk 00:34:46]} {[%emt 00:00:17]} 43. Qe3 {[%clk 00:21:33]} {[%emt
00:03:33]} Bxd4 {[%clk 00:32:13]} {[%emt 00:03:03]} 44. cxd4 {[%clk 00:21:59]}
{[%emt 00:00:05]} Qxb4 {[%clk 00:32:02]} {[%emt 00:00:40]} 45. Qe5 {[%clk
00:20:12]} {[%emt 00:02:17]} Be4 {[%clk 00:31:29]} {[%emt 00:01:03]} 46. Bf3
{[%clk 00:18:29]} {[%emt 00:02:14]} Qb1+ {[%clk 00:30:09]} {[%emt 00:01:50]} 47.
Kh2 {[%clk 00:18:57]} {[%emt 00:00:02]} b5 {[%clk 00:28:54]} {[%emt 00:01:45]}
0-1

[ePGN "0.1;DGT LiveChess/2.2.6"]

[Event "Allsvenskan Div I 3 2023/2024: SS Manhem II - Majornas SS"]
[Site "Goteborgs schackcentrum, Vegatan 20, Gothenburg, Sweden"]
[Date "2024.02.04"]
[Round "1.5"]
[White "Bengtsson, Tage"]
[Black "Lisander, Stefan"]
[Result "1-0"]
[TimeControl "90 minutes for 40 moves + 30 minutes for the rest of the game + 30 seconds per move from move one."]
[WhiteFideId "1713850"]
[BlackFideId "1711733"]
[WhiteElo "2020"]
[BlackElo "2023"]

1. c4 {[%clk 01:30:57]} {[%emt 00:00:03]} e5 {[%clk 01:30:47]} {[%emt
00:00:13]} 2. Nc3 {[%clk 01:31:23]} {[%emt 00:00:05]} Nf6 {[%clk 01:31:04]}
{[%emt 00:00:12]} 3. Nf3 {[%clk 01:31:48]} {[%emt 00:00:05]} Nc6 {[%clk
01:31:22]} {[%emt 00:00:12]} 4. d4 {[%clk 01:32:14]} {[%emt 00:00:04]} exd4
{[%clk 01:30:00]} {[%emt 00:01:53]} 5. Nxd4 {[%clk 01:32:35]} {[%emt 00:00:08]}
Bb4 {[%clk 01:29:23]} {[%emt 00:01:07]} 6. g3 {[%clk 01:31:39]} {[%emt
00:01:26]} O-O {[%clk 01:20:42]} {[%emt 00:09:11]} 7. Bg2 {[%clk 01:32:03]}
{[%emt 00:00:06]} d5 {[%clk 01:21:07]} {[%emt 00:00:05]} 8. O-O {[%clk
01:32:02]} {[%emt 00:00:30]} Nxd4 {[%clk 01:21:24]} {[%emt 00:00:14]} 9. Qxd4
{[%clk 01:32:29]} {[%emt 00:00:03]} c5 {[%clk 01:21:39]} {[%emt 00:00:14]} 10.
Qh4 {[%clk 01:29:50]} {[%emt 00:03:08]} d4 {[%clk 01:21:16]} {[%emt 00:00:55]}
11. Nd5 {[%clk 01:28:31]} {[%emt 00:01:49]} Nxd5 {[%clk 01:21:29]} {[%emt
00:00:17]} 12. Qxd8 {[%clk 01:28:51]} {[%emt 00:00:10]} Rxd8 {[%clk 01:21:43]}
{[%emt 00:00:15]} 13. Bxd5 {[%clk 01:29:15]} {[%emt 00:00:07]} Be6 {[%clk
01:09:20]} {[%emt 00:12:53]} 14. Bxb7 {[%clk 01:10:03]} {[%emt 00:19:42]} Rab8
{[%clk 01:09:40]} {[%emt 00:00:09]} 15. Be4 {[%clk 01:10:07]} {[%emt 00:00:26]}
Bxc4 {[%clk 01:09:43]} {[%emt 00:00:28]} 16. Bd3 {[%clk 01:07:07]} {[%emt
00:03:30]} Bxd3 {[%clk 01:02:26]} {[%emt 00:07:48]} 17. exd3 {[%clk 01:07:34]}
{[%emt 00:00:02]} Re8 {[%clk 01:01:59]} {[%emt 00:00:56]} 18. a3 {[%clk
01:03:26]} {[%emt 00:04:40]} Ba5 {[%clk 01:02:17]} {[%emt 00:00:12]} 19. b4
{[%clk 01:03:35]} {[%emt 00:00:21]} cxb4 {[%clk 00:56:57]} {[%emt 00:05:50]} 20.
axb4 {[%clk 01:04:03]} {[%emt 00:00:02]} Bxb4 {[%clk 00:57:15]} {[%emt
00:00:12]} 21. Rxa7 {[%clk 01:04:09]} {[%emt 00:00:24]} Ra8 {[%clk 00:56:29]}
{[%emt 00:01:17]} 22. Rxa8 {[%clk 00:54:51]} {[%emt 00:09:48]} Rxa8 {[%clk
00:56:50]} {[%emt 00:00:08]} 23. Bb2 {[%clk 00:55:10]} {[%emt 00:00:10]} Bc3
{[%clk 00:56:49]} {[%emt 00:00:32]} 24. Bxc3 {[%clk 00:55:18]} {[%emt
00:00:22]} dxc3 {[%clk 00:57:12]} {[%emt 00:00:07]} 25. Rc1 {[%clk 00:55:45]}
{[%emt 00:00:04]} Rc8 {[%clk 00:56:45]} {[%emt 00:00:56]} 26. Kf1 {[%clk
00:54:53]} {[%emt 00:01:22]} Kf8 {[%clk 00:56:55]} {[%emt 00:00:20]} 27. Ke2
{[%clk 00:55:16]} {[%emt 00:00:07]} Ke7 {[%clk 00:55:45]} {[%emt 00:01:40]} 28.
d4 {[%clk 00:55:34]} {[%emt 00:00:12]} Rc6 {[%clk 00:53:02]} {[%emt 00:03:13]}
29. Kd3 {[%clk 00:55:10]} {[%emt 00:00:54]} Rh6 {[%clk 00:52:47]} {[%emt
00:00:45]} 30. h4 {[%clk 00:55:31]} {[%emt 00:00:08]} Rf6 {[%clk 00:51:35]}
{[%emt 00:01:43]} 31. Rc2 {[%clk 00:55:56]} {[%emt 00:00:06]} Ra6 {[%clk
00:49:20]} {[%emt 00:02:44]} 32. Rxc3 {[%clk 00:55:58]} {[%emt 00:00:28]} Kd6
{[%clk 00:49:41]} {[%emt 00:00:09]} 33. Ke4 {[%clk 00:53:28]} {[%emt 00:02:59]}
Ra2 {[%clk 00:49:51]} {[%emt 00:00:21]} 34. f3 {[%clk 00:53:02]} {[%emt
00:00:56]} Re2+ {[%clk 00:49:17]} {[%emt 00:01:03]} 35. Kf4 {[%clk 00:52:04]}
{[%emt 00:01:28]} Rd2 {[%clk 00:49:30]} {[%emt 00:00:16]} 36. Ke3 {[%clk
00:52:18]} {[%emt 00:00:18]} Rg2 {[%clk 00:49:36]} {[%emt 00:00:24]} 37. g4
{[%clk 00:52:39]} {[%emt 00:00:09]} Rh2 {[%clk 00:48:14]} {[%emt 00:01:51]} 38.
h5 {[%clk 00:53:07]} {[%emt 00:00:03]} Ra2 {[%clk 00:44:20]} {[%emt 00:04:24]}
39. Rb3 {[%clk 00:53:24]} {[%emt 00:00:13]} Ra1 {[%clk 00:44:13]} {[%emt
00:00:36]} 40. Rb6+ {[%clk 00:48:21]} {[%emt 00:05:32]} Kc7 {[%clk 00:43:34]}
{[%emt 00:01:10]} 41. Rb5 {[%clk 00:48:35]} {[%emt 00:00:17]} Re1+ {[%clk
00:42:20]} {[%emt 00:01:43]} 42. Kd2 {[%clk 00:48:03]} {[%emt 00:01:02]} Re7
{[%clk 00:40:01]} {[%emt 00:02:49]} 43. Re5 {[%clk 00:47:34]} {[%emt 00:00:59]}
Rd7 {[%clk 00:39:56]} {[%emt 00:00:36]} 44. Ke3 {[%clk 00:47:57]} {[%emt
00:00:07]} Kd6 {[%clk 00:39:58]} {[%emt 00:00:26]} 45. Re8 {[%clk 00:42:56]}
{[%emt 00:05:33]} h6 {[%clk 00:34:28]} {[%emt 00:06:01]} 46. Ke4 {[%clk
00:42:42]} {[%emt 00:00:43]} Ra7 {[%clk 00:34:18]} {[%emt 00:00:40]} 47. Rg8
{[%clk 00:42:52]} {[%emt 00:00:20]} Re7+ {[%clk 00:29:23]} {[%emt 00:05:25]} 48.
Kf5 {[%clk 00:42:16]} {[%emt 00:01:04]} Kd5 {[%clk 00:29:47]} {[%emt 00:00:08]}
49. Rxg7 {[%clk 00:41:54]} {[%emt 00:00:52]} Kxd4 {[%clk 00:30:05]} {[%emt
00:00:12]} 50. Kf6 {[%clk 00:41:20]} {[%emt 00:01:04]} Re3 {[%clk 00:30:25]}
{[%emt 00:00:10]} 51. Kxf7 {[%clk 00:41:33]} {[%emt 00:00:17]} Rxf3+ {[%clk
00:30:44]} {[%emt 00:00:11]} 52. Kg6 {[%clk 00:41:58]} {[%emt 00:00:05]} 1-0

[ePGN "0.1;DGT LiveChess/2.2.6"]